bitfinex-derivatives/quotes_ETHF0:USTF0_20250404
["timestamp","ask_amount","ask_price","bid_price","bid_amount"]
[1743797216940,5.72873,1812.4,1812.3,2.61143]
[1743797217243,5.72872,1812.4,1812.3,2.61143]
[1743797218341,7.23332,1812.4,1812.3,1.10393]
[1743797218843,1.104,1812.3,1812.2,1.10399]
[1743797219144,6.3892,1812.3,1812.2,1.10399]
[1743797219646,5.2852,1812.3,1812.2,1.10399]
[1743797219942,5.2852,1812.3,1812.2,2.51279]
[1743797220843,5.2852,1812.3,1812.2,3.30312742]
[1743797221042,5.2852,1812.3,1812.2,4.03926243]
[1743797221444,5.2852,1812.3,1812.2,4.58399096]
[1743797221650,6.38918,1812.3,1812.2,4.58399096]
[1743797221843,6.38918,1812.3,1812.2,3.05753591]
[1743797222139,5.2852,1812.3,1812.2,3.05753591]
[1743797222344,5.2852,1812.3,1812.2,3.84791487]
[1743797222645,3.76,1812.3,1812.2,3.84791487]
[1743797223246,3.76,1812.3,1812.2,4.58411049]
[1743797223650,3.76,1812.3,1812.2,4.5842804]
[1743797224853,3.76,1812.3,1812.2,4.58396172]
[1743797225254,4.86398,1812.3,1812.2,4.58396172]
[1743797225449,5.2218,1812.3,1812.2,4.58396172]
[1743797225751,5.2218,1812.3,1812.2,3.79347641]
[1743797225956,5.2218,1812.3,1812.2,3.05728079]
[1743797226251,5.2218,1812.3,1812.2,3.05729181]
[1743797226856,3.76,1812.3,1812.2,3.05729181]
[1743797227256,3.76,1812.3,1812.2,3.84780585]
[1743797227961,3.76,1812.3,1812.2,3.84780899]
[1743797228165,3.76,1812.3,1812.2,3.05728035]
[1743797228366,5.1702,1812.3,1812.2,3.05728035]
[1743797229166,3.76,1812.3,1812.2,3.05728035]
[1743797231364,3.76,1812.3,1812.2,3.84787496]
[1743797231864,3.76,1812.3,1812.2,4.57985026]
[1743797232464,34.787,1812.5,1812.4,1.10392]
[1743797232764,38.545,1812.5,1812.4,2.43900496]
[1743797232965,38.545,1812.5,1812.4,6.10128026]
[1743797233865,34.787,1812.5,1812.4,6.10128026]
[1743797234163,0.00826902,1812.7,1812.6,1.1038]
[1743797234363,0.00826902,1812.7,1812.6,3.17086026]
[1743797234764,0.00826902,1812.7,1812.6,3.16917047]
[1743797236170,0.00826902,1812.7,1812.6,2.43719517]
[1743797236363,0.00826902,1812.7,1812.6,2.43640979]
[1743797236569,0.00826902,1812.7,1812.6,2.43585826]
[1743797236968,0.00826902,1812.7,1812.6,5.64365826]
[1743797237270,0.00826902,1812.7,1812.6,6.37390286]
[1743797237468,9.02e-06,1812.7,1812.6,6.37390286]
[1743797237662,9.02e-06,1812.7,1812.6,8.87390286]
[1743797238164,9.02e-06,1812.7,1812.6,10.28370286]
[1743797238371,9.02e-06,1812.7,1812.6,51.08370286]
[1743797238672,3.757,1813.5,1813.4,1.10331]
[1743797239370,3.757,1813.5,1813.4,1.64491597]
[1743797239673,4.309,1813.5,1813.4,3.05471597]
[1743797240163,3.757,1813.5,1813.4,2.51311]
[1743797240572,4.309,1813.5,1813.4,2.51311]
[1743797240771,3.757,1813.5,1813.4,2.51311]
[1743797241365,5.7589,1813.5,1813.4,2.51311]
[1743797241571,5.2069,1813.5,1813.4,2.51311]
[1743797247174,6.31015,1813.5,1813.3,1.10333]
[1743797247473,1.4129,1813.4,1813.3,1.10333]
[1743797247676,5.72403,1813.4,1813.3,1.10338]
[1743797247872,1.10338,1813.3,1813.2,1.10339]
[1743797248077,3.99988,1813.3,1813.2,1.10339]
[1743797248277,2.8965,1813.3,1813.2,1.10339]
[1743797248779,2.8965,1813.3,1813.0,1.4366]
[1743797248972,3.2078,1813.1,1812.8,1.10363]
[1743797249174,2.5165,1813.0,1812.9,1.10362]
[1743797249478,2.5165,1813.0,1812.8,1.10363]
[1743797249680,6.7699,1812.9,1812.8,1.10363]
[1743797250178,3.2078,1813.3,1813.2,1.10344]
[1743797250382,6.9628,1813.3,1813.2,1.10344]
[1743797250977,6.9628,1813.3,1813.1,1.10345]
[1743797251178,1.10344,1813.2,1813.1,1.10345]
[1743797251371,6.9628,1813.3,1813.1,1.10345]
[1743797251574,1.1035,1813.1,1813.0,1.10353]
[1743797251879,3.2078,1813.1,1812.9,1.10356]
[1743797252079,6.8114,1813.0,1812.9,1.10356]
[1743797256783,7.91496,1813.0,1812.9,1.10356]
[1743797257282,1.10362,1812.9,1812.8,2.58564]
[1743797257481,4.6611,1812.9,1812.8,1.10364]
[1743797258078,4.6611,1812.9,1812.5,43.56787]
[1743797258275,1.4533,1812.8,1812.7,1.10374]
[1743797258988,2.55703,1812.8,1812.6,1.10375]
[1743797259187,3.754,1812.7,1812.6,1.10375]
[1743797259480,6.29254,1812.7,1812.6,1.10375]
[1743797259788,9.50034,1812.7,1812.6,1.1038]
[1743797260183,8.3966,1812.7,1812.6,1.1038]
[1743797260687,8.9486,1812.7,1812.6,1.1038]
[1743797260885,10.05234,1812.7,1812.5,1.11208]
[1743797261086,2.8566,1812.6,1812.5,1.11208]
[1743797261281,2.8566,1812.6,1812.5,2.51498]
[1743797261488,35.324,1813.0,1812.5,13.17950754]
[1743797261787,5.2609,1812.9,1812.8,1.10368]
[1743797262088,1.10371,1812.8,1812.7,1.10374]
[1743797262277,2.61061,1812.8,1812.7,1.10374]
[1743797262684,2.61061,1812.8,1812.7,41.90374]
[1743797262884,1.5069,1812.8,1812.7,41.90374]
[1743797263081,1.5069,1812.8,1812.7,1.10374]
[1743797263286,2.61058,1812.8,1812.7,1.10374]
[1743797263682,1.5069,1812.8,1812.6,1.10378]
[1743797263879,4.7147,1812.7,1812.6,1.10378]
[1743797264686,1.1038,1812.6,1812.5,0.00826]
[1743797264876,6.5721,1812.6,1811.7,5.96868]
[1743797265191,3.2078,1812.2,1812.1,1.10409]
[1743797265375,6.9618,1812.2,1812.1,1.10409]
[1743797265575,3.754,1812.2,1812.1,1.10409]
[1743797265782,6.9618,1812.2,1812.1,1.10409]
[1743797268083,6.9618,1812.2,1812.1,41.90409]
[1743797269088,0.00826902,1812.3,1812.2,1.10405]
[1743797269294,0.00826902,1812.3,1812.2,4.11765]
[1743797269789,0.00826902,1812.3,1812.2,45.45839897]
[1743797273680,0.00826902,1812.3,1812.2,45.45898627]
[1743797275281,0.00826902,1812.3,1812.2,4.11765]
[1743797275486,2.50654902,1812.3,1812.2,1.10405]
[1743797275784,1.10417,1812.0,1811.9,1.86288]
[1743797275981,1.10417,1812.0,1811.9,1.10418]
[1743797275982,6.9618,1812.0,1811.9,1.10418]
[1743797276779,7.5138,1812.0,1811.9,1.10418]
[1743797277188,7.5138,1812.0,1811.7,42.66301]
[1743797277189,8.9289,1812.0,1811.7,42.66301]
[1743797277380,3.2078,1811.8,1811.6,1.10438]
[1743797277583,6.27345,1811.7,1811.6,1.10438]
[1743797277784,1.10441,1811.6,1811.5,1.10443]
[1743797277988,5.72737,1811.6,1811.4,2.5166]
[1743797278296,1.10449,1811.5,1811.3,0.744]
[1743797278498,2.51959,1811.5,1811.4,1.10451]
[1743797278699,9.48139,1811.5,1811.4,1.10451]
[1743797278889,9.48139,1811.5,1811.3,3.26065]
[1743797279090,1.4151,1811.4,1811.3,3.26065]
[1743797280294,6.9618,1811.5,1811.4,1.10453]
[1743797280492,6.9618,1811.5,1811.4,2.57063]
[1743797280993,3.754,1811.5,1811.4,2.57063]
[1743797281301,6.9618,1811.5,1811.4,2.57063]
[1743797281802,8.4114,1811.5,1811.2,40.8]
[1743797281997,3.2078,1811.3,1811.2,1.10459]
[1743797282396,4.6574,1811.3,1811.2,1.10459]
[1743797283100,5.4092,1811.3,1811.2,1.10459]
[1743797283700,6.1244,1811.3,1811.2,1.10459]
[1743797285804,6.1244,1811.3,1811.1,1.10471]
[1743797286007,5.2644,1811.2,1811.1,1.10471]
[1743797286306,5.2644,1811.2,1811.0,2.60213]
[1743797286307,6.92189001,1811.2,1811.0,2.60213]
[1743797286504,4.7182,1811.1,1811.0,2.60213]
[1743797286902,4.7182,1811.1,1810.8,0.7451]
[1743797287107,4.7182,1811.1,1810.9,1.10484]
[1743797287108,1.5104,1811.0,1810.9,1.10484]
[1743797287609,1.5104,1811.0,1810.9,2.60224]
[1743797287809,3.2078,1811.1,1811.0,1.10478]
[1743797288011,3.2078,1811.1,1811.0,2.60218]
[1743797289305,3.754,1811.2,1811.1,1.10472]
[1743797289505,3.754,1811.2,1811.1,3.26252]
[1743797289900,3.754,1811.2,1811.1,44.06252]
[1743797290116,34.796,1811.3,1811.2,1.10465]
[1743797290312,34.796,1811.3,1811.2,3.27375]
[1743797291013,34.796,1811.3,1811.2,5.77375]
[1743797292110,34.796,1811.3,1811.2,3.27375]
[1743797292709,34.796,1811.3,1811.2,3.81378415]
[1743797292902,34.796,1811.3,1811.2,3.81377166]
[1743797293107,34.796,1811.3,1811.2,3.27375]
[1743797293509,34.796,1811.3,1811.2,3.81397139]
[1743797294316,34.796,1811.3,1811.2,3.81415528]
[1743797297014,36.2218,1811.3,1811.2,3.27375]
[1743797297209,36.2218,1811.3,1811.2,2.53755]
[1743797297718,39.4296,1811.3,1811.2,2.53755]
[1743797298019,34.796,1811.3,1811.2,3.07809958]
[1743797298820,36.317,1811.3,1811.2,3.07809958]
[1743797299426,36.317,1811.3,1811.2,1.10465]
[1743797300724,36.317,1811.3,1811.2,2.61475]
[1743797301429,36.317,1811.3,1811.2,3.15607096]
[1743797302829,34.796,1811.3,1811.2,3.15650227]
[1743797303728,36.2856,1811.3,1811.2,3.15650227]
[1743797304129,36.2856,1811.3,1811.2,1.64640227]
[1743797304932,36.2856,1811.3,1811.2,1.64739892]
[1743797305233,36.2856,1811.3,1811.2,3.89344346]
[1743797305628,36.2856,1811.3,1811.2,4.62397833]
[1743797306534,36.2856,1811.3,1811.2,4.62442938]
[1743797307831,36.2856,1811.3,1811.2,3.16732938]
[1743797308030,39.4934,1811.3,1811.2,3.16732938]
[1743797308832,39.4934,1811.3,1811.2,4.65292938]
[1743797309328,3.2078,1811.3,1811.2,4.65292938]
[1743797309726,3.2078,1811.3,1811.2,6.11072938]
[1743797310240,6.69236902,1811.4,1811.3,1.10459]
[1743797310436,6.69236902,1811.4,1811.3,3.88943451]
[1743797312227,6.69236902,1811.4,1811.3,3.88992669]
[1743797312935,6.69236902,1811.4,1811.3,4.62128729]
[1743797313329,6.69236902,1811.4,1811.3,3.16858729]
[1743797314237,6.69236902,1811.4,1811.3,2.43858129]
[1743797315237,0.00826902,1811.4,1811.3,2.43858129]
[1743797315536,3.76126902,1811.4,1811.3,4.70507326]
[1743797315925,3.76126902,1811.4,1811.3,4.70509632]
[1743797316732,3.76126902,1811.4,1811.3,10.41289632]
[1743797316733,9.02e-06,1811.4,1811.3,10.41289632]
[1743797317341,3.753,1811.9,1811.8,1.10429]
[1743797317532,7.31280001,1812.1,1812.0,1.10417]
[1743797317840,7.31280001,1812.1,1812.0,1.64825908]
[1743797318238,7.31280001,1812.1,1812.0,1.64795563]
[1743797318638,3.56080001,1812.1,1812.0,1.64795563]
[1743797318842,7.31280001,1812.1,1812.0,1.64795563]
[1743797320145,7.31280001,1812.1,1811.9,1.10421]
[1743797320346,4.7016,1812.0,1811.9,1.10421]
[1743797320547,4.7016,1812.0,1811.9,1.64737681]
[1743797320844,4.7016,1812.0,1811.7,5.74026]
[1743797320845,1.10423,1811.9,1811.5,5.52225]
[1743797321050,6.9598,1811.8,1811.7,1.10435]
[1743797321244,7.7282,1811.8,1811.7,0.54320578]
[1743797321449,10.32629,1811.8,1811.5,2.76116]
[1743797321746,2.2094,1811.7,1811.6,1.64754789]
[1743797322647,2.2094,1811.7,1811.6,1.64749902]
[1743797322848,3.31375,1811.7,1811.6,0.54313902]
[1743797323049,3.31375,1811.7,1811.6,1.10441]
[1743797323747,2.2094,1811.7,1811.3,5.76677]
[1743797323950,4.6082,1811.6,1811.5,1.10447]
[1743797324448,7.7282,1811.8,1811.5,0.54318072]
[1743797324643,9.1286,1811.8,1811.7,1.10435]
[1743797324849,7.7282,1811.8,1811.7,1.64748431]
[1743797325346,7.7282,1811.8,1811.7,1.64747293]
[1743797326848,7.7282,1811.8,1811.7,1.64738748]
[1743797327248,7.7282,1811.8,1811.7,1.64738379]
[1743797327648,3.9762,1811.8,1811.7,3.11948379]
[1743797327949,7.7272,1811.8,1811.7,3.11948379]
[1743797329044,7.7272,1811.8,1811.7,3.11940948]
[1743797329649,4.5194,1811.8,1811.7,3.11940948]
[1743797329850,3.751,1811.8,1811.7,3.88270948]
[1743797331049,3.751,1811.9,1811.8,1.10429]
[1743797331349,3.751,1811.9,1811.8,3.13394948]
[1743797332549,3.751,1811.9,1811.8,3.92189041]
[1743797332746,3.751,1811.9,1811.8,3.92164021]
[1743797332948,3.751,1811.9,1811.8,3.13369928]
[1743797334448,0.55280001,1812.1,1811.8,4.79001928]
[1743797334654,0.55280001,1812.1,1811.9,3.87233928]
[1743797334655,3.75,1812.0,1811.9,3.87233928]
[1743797336954,4.302,1812.0,1811.9,3.87233928]
[1743797337157,4.302,1812.0,1811.9,44.67233928]
[1743797337449,4.302,1812.0,1811.9,1.10423]
[1743797337853,5.0113,1812.0,1811.9,1.10423]
[1743797339659,6.4145,1812.0,1811.9,1.10423]
[1743797340660,6.4145,1812.0,1811.9,1.64719956]
[1743797340854,6.4145,1812.0,1811.9,1.10423]
[1743797341256,6.4145,1812.0,1811.9,1.64727874]
[1743797341557,6.4145,1812.0,1811.9,1.6472774]
[1743797341955,9.6223,1812.0,1811.8,2.59044]
[1743797342161,1.4001,1811.9,1811.8,1.10429]
[1743797342459,1.4001,1811.9,1811.8,1.64738816]
[1743797343364,1.10429,1811.8,1811.7,1.10434]
[1743797343653,3.9155,1811.8,1811.7,1.64771228]
[1743797343861,5.01979,1811.8,1811.7,0.54337228]
[1743797344161,1.10435,1811.7,1811.6,1.10436]
[1743797344460,7.04755,1811.7,1811.6,1.64775976]
[1743797345363,7.04755,1811.7,1811.6,0.54355141]
[1743797345559,7.04755,1811.7,1811.5,1.10443]
[1743797345560,1.10441,1811.6,1811.5,1.10443]
[1743797345862,5.80671,1811.6,1811.5,1.10443]
[1743797346064,5.80671,1811.6,1811.5,1.64811685]
[1743797346558,4.7023,1811.6,1811.5,1.6481169]
[1743797346760,5.80671,1811.6,1811.5,1.6481169]
[1743797346956,5.80671,1811.6,1811.5,1.64810924]
[1743797347151,5.80671,1811.6,1811.3,2.2129]
[1743797347358,1.5162,1811.5,1811.4,1.6482348]
[1743797347758,1.5162,1811.5,1811.4,3.1002348]
[1743797350767,1.5162,1811.5,1811.4,3.09987345]
[1743797351963,3.2078,1811.6,1811.5,1.10447]
[1743797352162,6.9568,1811.6,1811.5,3.15491551]
[1743797352565,6.9568,1811.6,1811.5,2.61167]
[1743797352768,6.9568,1811.6,1811.5,3.15488943]
[1743797352969,6.9568,1811.6,1811.5,2.61167]
[1743797353176,8.4237,1811.6,1811.2,0.77526902]
[1743797353366,4.31235,1811.4,1811.3,1.64783206]
[1743797353671,4.31235,1811.4,1811.3,3.04605206]
[1743797353865,5.75725,1811.4,1811.3,3.04605206]
[1743797354262,5.75725,1811.4,1811.3,2.50279]
[1743797354668,1.10459,1811.3,1811.2,0.00826902]
[1743797354867,6.27489,1811.3,1811.2,1.65604327]
[1743797355068,5.1703,1811.3,1811.2,1.65604327]
[1743797356375,5.1703,1811.3,1811.2,1.65587182]
[1743797357975,3.748,1811.3,1811.2,2.40267182]
[1743797358179,3.748,1811.3,1811.2,2.40246577]
[1743797359370,4.30080001,1811.3,1811.2,2.40246577]
[1743797360178,4.30080001,1811.3,1811.2,2.4024044]
[1743797362777,3.748,1811.3,1811.2,2.4024044]
[1743797362980,34.8,1811.5,1811.4,1.10453]
[1743797363281,34.8,1811.5,1811.4,1.64721538]
[1743797363678,34.8,1811.5,1811.4,3.17671538]
[1743797364077,35.90447,1811.5,1811.4,1.10453]
[1743797364280,38.15137,1811.5,1811.4,1.10453]
[1743797364883,38.15137,1811.5,1811.4,2.63403]
[1743797365089,34.8,1811.5,1811.4,2.63403]
[1743797365288,34.8,1811.5,1811.4,3.17695994]
[1743797367487,34.8,1811.5,1811.4,3.17742651]
[1743797369390,34.8,1811.5,1811.4,3.17769587]
[1743797369591,34.8,1811.5,1811.4,3.96703464]
[1743797369796,34.8,1811.5,1811.4,3.17769587]
[1743797370082,8.06021,1811.6,1811.5,1.10447]
[1743797370287,6.9558,1811.6,1811.5,3.10253587]
[1743797370988,8.06021,1811.6,1811.5,3.10253587]
[1743797371290,6.9558,1811.6,1811.5,3.10253587]
[1743797371490,8.06021,1811.6,1811.5,3.10253587]
[1743797371691,6.9558,1811.6,1811.5,3.10253587]
[1743797373491,3.748,1811.6,1811.5,3.89257294]
[1743797373885,3.93015001,1811.7,1811.6,1.10441]
[1743797373886,2.82580001,1811.7,1811.6,1.10441]
[1743797374080,6.57280001,1811.7,1811.6,3.89107587]
[1743797374292,7.67715001,1811.7,1811.6,3.89107587]
[1743797374593,7.67715001,1811.7,1811.6,1.64807587]
[1743797375893,7.12435,1811.7,1811.6,0.54366587]
[1743797376095,11.28094,1811.7,1811.3,0.7007]
[1743797376332,1.10447,1811.5,1811.4,0.5442733]
[1743797376497,4.31227,1811.5,1811.4,1.6488033]
[1743797376791,6.31227001,1811.5,1811.4,1.64881149]
[1743797377498,5.20780001,1811.5,1811.4,1.64881149]
[1743797377688,5.20780001,1811.5,1811.4,2.4389537]
[1743797378088,5.20780001,1811.5,1811.4,1.64881149]
[1743797378689,5.20780001,1811.5,1811.4,1.64880048]
[1743797378894,6.31227001,1811.5,1811.4,0.54427048]
[1743797379693,6.31227001,1811.5,1811.4,1.64880048]
[1743797379893,5.20780001,1811.5,1811.4,1.64880048]
[1743797380495,5.20780001,1811.5,1811.4,1.64879359]
[1743797382596,5.20780001,1811.5,1811.4,1.64878754]
[1743797383095,6.31227001,1811.5,1811.4,1.64878754]
[1743797383598,5.20780001,1811.5,1811.4,1.64878754]
[1743797383987,6.31227001,1811.5,1811.4,1.64878754]
[1743797384191,5.20780001,1811.5,1811.4,1.64878754]
[1743797384395,6.31227001,1811.5,1811.4,1.64878754]
[1743797384605,6.31227001,1811.5,1811.4,1.64881659]
[1743797384999,5.20780001,1811.5,1811.4,1.64881659]
[1743797385504,6.31227001,1811.5,1811.4,1.64881659]
[1743797385895,5.20780001,1811.5,1811.4,1.64881659]
[1743797386201,6.31227001,1811.5,1811.4,1.64887903]
[1743797387803,5.20780001,1811.5,1811.4,1.64887903]
[1743797388105,8.95380001,1811.5,1811.4,1.64887903]
[1743797388300,8.401,1811.5,1811.4,1.64887903]
[1743797388500,8.401,1811.5,1811.4,3.17886845]
[1743797388701,8.95380001,1811.5,1811.4,2.38849196]
[1743797388903,8.95380001,1811.5,1811.4,1.64887903]
[1743797389102,9.50547,1811.5,1811.4,1.64887903]
[1743797389303,10.05827001,1811.5,1811.4,1.64887903]
[1743797389491,9.50547,1811.5,1811.4,1.64887903]
[1743797389899,10.05827001,1811.5,1811.4,1.10453]
[1743797390105,10.05827001,1811.5,1811.4,1.64898452]
[1743797390500,10.05827001,1811.5,1811.4,0.54445452]
[1743797391407,12.55827001,1811.5,1811.4,0.54445452]
[1743797391906,1.10453,1811.4,1811.3,1.10459]
[1743797392108,4.07965,1811.4,1811.3,1.64902263]
[1743797392612,4.07963,1811.4,1811.3,1.64902263]
[1743797393104,4.07963,1811.4,1811.3,0.54443263]
[1743797395517,4.07963,1811.4,1811.3,1.64886291]
[1743797395812,4.07963,1811.4,1811.3,0.54427291]
[1743797396409,1.10459,1811.3,1811.2,0.00826902]
[1743797396608,5.72859,1811.3,1811.2,0.55249693]
[1743797396815,6.28139001,1811.3,1811.2,0.55249693]
[1743797397519,6.28139001,1811.3,1811.2,0.55249486]
[1743797398010,6.28139001,1811.3,1811.2,1.65714486]
[1743797398211,6.28139001,1811.3,1811.2,0.55249486]
[1743797398411,6.28139001,1811.3,1811.2,1.65714486]
[1743797399014,41.08739001,1811.3,1811.2,1.65714486]
[1743797399412,41.08739001,1811.3,1811.2,1.65702884]
[1743797400315,41.08739001,1811.3,1811.2,0.55237884]
[1743797400808,39.98280001,1811.3,1811.2,1.65702884]
[1743797401016,43.72780001,1811.3,1811.2,1.65698018]
[1743797401813,43.72780001,1811.3,1811.2,3.15688018]
[1743797402011,43.72780001,1811.3,1811.2,3.87608018]
[1743797402815,38.56660001,1811.3,1811.2,3.87608018]
[1743797403015,39.10380001,1811.3,1811.2,4.66592195]
[1743797403515,41.7588,1811.3,1811.2,4.66592195]
[1743797403712,3.745,1811.3,1811.2,4.66592195]
[1743797403924,0.55280001,1811.4,1811.3,1.10459]
[1743797404119,35.35880001,1811.6,1811.5,1.10447]
[1743797404314,39.10280001,1811.6,1811.5,1.64853116]
[1743797405017,39.10280001,1811.6,1811.5,3.18243116]
[1743797406121,39.10280001,1811.6,1811.5,3.18255073]
[1743797406420,42.36831001,1811.6,1811.5,3.18255073]
[1743797406615,41.26390001,1811.6,1811.5,3.18255073]
[1743797406919,42.36831001,1811.6,1811.5,0.54418073]
[1743797407425,42.36831001,1811.6,1811.5,1.64865073]
[1743797407918,42.36831001,1811.6,1811.3,4.27568]
[1743797407919,41.26390001,1811.6,1811.3,2.61875]
[1743797408221,4.31233,1811.4,1811.3,1.10455]
[1743797408420,4.31233,1811.4,1811.3,1.64877575]
[1743797408722,5.06143,1811.4,1811.3,1.64877575]
[1743797409025,5.06143,1811.4,1811.3,0.54422575]
[1743797409416,5.06143,1811.4,1811.3,0.54423309]
[1743797409718,5.06143,1811.4,1811.3,1.64882309]
[1743797409919,5.06143,1811.4,1811.3,1.64880498]
[1743797410323,5.06143,1811.4,1811.3,0.54421498]
[1743797410820,5.06143,1811.4,1811.3,1.64880498]
[1743797411122,5.06143,1811.4,1811.3,0.54422033]
[1743797411323,5.06143,1811.4,1811.3,1.64881033]
[1743797411825,5.06143,1811.4,1811.3,0.54422033]
[1743797412123,5.06143,1811.4,1811.3,1.64881033]
[1743797413432,3.9569,1811.4,1811.3,3.06771033]
[1743797413618,3.9569,1811.4,1811.3,3.06768425]
[1743797414526,5.06143,1811.4,1811.3,3.06768425]
[1743797415024,5.06143,1811.4,1811.3,1.96309425]
[1743797415226,5.06143,1811.4,1811.3,0.54419425]
[1743797415626,1.10459,1811.3,1811.2,1.81618902]
[1743797415823,6.99929,1811.3,1811.2,3.78861774]
[1743797416021,6.99929,1811.3,1811.2,2.68399774]
[1743797416223,6.99929,1811.3,1811.2,0.55249774]
[1743797416723,7.55209001,1811.3,1811.2,0.55249774]
[1743797417320,7.55209001,1811.3,1811.2,1.65715292]
[1743797417722,7.55209001,1811.3,1811.2,0.55250292]
[1743797421027,7.55209001,1811.3,1811.2,0.55252569]
[1743797421225,7.55209001,1811.3,1811.2,0.55251178]
[1743797423329,1.10472,1811.1,1811.0,1.5165]
[1743797423627,4.31252,1811.1,1811.0,0.54421735]
[1743797424123,5.01952,1811.1,1811.0,0.54421735]
[1743797424533,9.1767,1811.1,1810.6,2.9799]
[1743797424718,3.2078,1810.8,1810.7,3.92737241]
[1743797425027,3.2078,1810.8,1810.7,3.14858605]
[1743797425226,7.6695,1811.0,1810.7,2.04364605]
[1743797425421,6.9498,1811.0,1810.9,1.10484]
[1743797425623,6.9498,1811.0,1810.9,2.43875409]
[1743797426435,6.9498,1811.0,1810.9,1.64899882]
[1743797426630,6.9498,1811.0,1810.9,2.43849862]
[1743797426825,6.9498,1811.0,1810.9,1.33365862]
[1743797427127,6.9498,1811.0,1810.9,1.64880219]
[1743797427430,6.9498,1811.0,1810.9,1.33362109]
[1743797427629,9.46798,1811.0,1810.9,0.54396219]
[1743797427831,8.3632,1811.0,1810.9,0.54396219]
[1743797428128,9.46798,1811.0,1810.9,0.54396219]
[1743797428328,8.3632,1811.0,1810.9,1.64871327]
[1743797431035,6.9498,1811.0,1810.9,2.4381974]
[1743797431228,3.742,1811.0,1810.9,2.4381974]
[1743797431430,0.00826902,1811.2,1811.1,1.10472]
[1743797431634,0.00826902,1811.2,1811.1,2.4380774]
[1743797431931,0.00826902,1811.2,1811.1,5.64701216]
[1743797432225,0.00826902,1811.2,1811.1,8.85481216]
[1743797432425,38.56660001,1811.6,1811.1,8.85481216]
[1743797432426,38.0138,1811.6,1811.5,1.10447]
[1743797432633,41.7558,1811.6,1811.5,1.64834327]
[1743797433021,38.548,1811.6,1811.5,1.64834327]
[1743797433426,38.548,1811.6,1811.5,2.43729299]
[1743797433626,38.548,1811.6,1811.5,1.64834327]
[1743797434134,41.7558,1811.6,1811.5,1.64834327]
[1743797434435,44.37871,1811.6,1811.5,1.64834327]
[1743797434634,43.2743,1811.6,1811.5,1.10447]
[1743797435230,43.2743,1811.6,1811.5,1.64795108]
[1743797435435,43.2743,1811.6,1811.5,1.10447]
[1743797435637,43.2743,1811.6,1811.5,1.64795456]
[1743797435837,43.2743,1811.6,1811.5,1.64794827]
[1743797436637,43.2743,1811.6,1811.5,1.10447]
[1743797436838,43.2743,1811.6,1811.5,1.64794392]
[1743797437033,44.37871,1811.6,1811.5,1.64794392]
[1743797437239,44.37871,1811.6,1811.4,0.7384]
[1743797437540,2.1639,1811.5,1811.4,1.84287]
[1743797437738,2.71670001,1811.5,1811.4,2.38632997]
[1743797439434,2.71670001,1811.5,1811.4,1.84287]
[1743797439634,2.71670001,1811.5,1811.4,2.38624398]
[1743797441042,3.82117001,1811.5,1811.4,0.54337398]
[1743797441228,3.82117001,1811.5,1811.4,1.10453]
[1743797441229,2.71670001,1811.5,1811.4,1.10453]
[1743797442637,2.71670001,1811.5,1811.3,1.485]
[1743797442841,4.31233,1811.4,1811.3,2.58954]
[1743797443141,6.47543,1811.4,1811.3,1.10454]
[1743797443337,5.3709,1811.4,1811.3,1.10459]
[1743797443749,5.3709,1811.4,1811.3,2.50599]
[1743797443937,6.47543,1811.4,1811.3,2.50599]
[1743797444139,6.47543,1811.4,1811.3,1.4014]
[1743797444338,5.3709,1811.4,1811.3,2.50599]
[1743797444532,6.47543,1811.4,1811.3,1.4014]
[1743797444738,5.3709,1811.4,1811.3,1.4014]
[1743797445035,5.3709,1811.4,1811.3,2.50599]
[1743797445742,3.2078,1811.4,1811.3,3.04931825]
[1743797446944,0.55280001,1811.5,1811.4,1.10453]
[1743797447248,1.65727001,1811.5,1811.4,1.5179]
[1743797447547,3.83937001,1811.5,1811.3,1.10455]
[1743797447742,3.9062,1811.4,1811.3,1.10455]
[1743797447939,5.3134,1811.4,1811.3,1.6478581]
[1743797448536,5.3134,1811.4,1811.3,3.17507549]
[1743797448742,5.3134,1811.4,1811.3,2.63175]
[1743797448952,5.3134,1811.4,1811.0,2.77021902]
[1743797449255,5.1472,1811.3,1811.2,1.10462]
[1743797449451,8.355,1811.3,1811.2,1.10462]
[1743797449657,9.4596,1811.3,1811.2,1.10465]
[1743797450255,8.355,1811.3,1811.2,1.64800374]
[1743797450757,8.355,1811.3,1811.2,1.64800712]
[1743797451256,9.45959,1811.3,1811.2,1.64800712]
[1743797451456,8.355,1811.3,1811.2,1.64802404]
[1743797452058,6.9478,1811.3,1811.2,1.64802404]
[1743797452454,3.74,1811.3,1811.2,1.64802404]
[1743797452947,6.9478,1811.3,1811.2,1.64802404]
[1743797453145,3.2078,1811.3,1811.2,1.64802404]
[1743797453346,6.9468,1811.3,1811.2,1.64802404]
[1743797454156,3.739,1811.3,1811.2,2.43697962]
[1743797454548,3.739,1811.3,1811.2,2.43695605]
[1743797454860,3.739,1811.3,1811.2,2.43699622]
[1743797456364,3.739,1811.3,1811.2,2.43740683]
[1743797456557,4.29180001,1811.3,1811.2,2.43740683]
[1743797456761,3.739,1811.3,1811.2,2.43740683]
[1743797458256,3.739,1811.3,1811.2,2.4375872]
[1743797458459,4.29180001,1811.3,1811.2,2.4375872]
[1743797459156,3.739,1811.3,1811.2,2.4375872]
[1743797460061,3.739,1811.3,1811.2,3.14734339]
[1743797460265,3.739,1811.3,1811.2,2.43815748]
[1743797461054,4.29180001,1811.3,1811.2,3.90265748]
[1743797461460,3.739,1811.3,1811.2,3.90265748]
[1743797461662,4.29180001,1811.3,1811.2,4.61220417]
[1743797461863,3.739,1811.3,1811.2,4.61220417]
[1743797463161,4.84359,1811.3,1811.2,3.1480729]
[1743797463458,8.75799,1811.3,1811.2,2.35845621]
[1743797463653,8.75799,1811.3,1811.2,1.64890952]
[1743797463861,9.31079001,1811.3,1811.2,1.64890952]
[1743797464364,8.20620001,1811.3,1811.2,1.64890952]
[1743797464755,8.20620001,1811.3,1811.2,1.64896565]